fUSD/lending_fUSD_20250108
["ID","MTS","AMOUNT","RATE_DAILY","PERIOD"]
[348120061,1736334644710,-425.98037196,0.00010444,2]
[348120062,1736334644719,-200.66947074,0.0001046,2]
[348120063,1736334644729,-14285.0,0.00010466,2]
[348120064,1736334644739,-151.0,0.00010466,2]
[348120065,1736334644748,-2427.8665773,0.00010493,2]
[348120066,1736334644757,-7482.2671362,0.00010493,2]
[348120067,1736334644767,-2227.8169615,0.00010493,2]
[348120068,1736334644776,-735.3401159,0.00010493,2]
[348120069,1736334644786,-646.41307309,0.00010499,2]
[348120070,1736334644796,-11057.08,0.00010499,2]
[348120071,1736334644805,-11057.08,0.00010499,2]
[348120072,1736334644814,-11057.08,0.00010499,2]
[348120073,1736334644824,-11057.08,0.00010499,2]
[348120074,1736334644833,-11057.08,0.00010499,2]
[348120075,1736334644842,-9526244.64118851,0.000105,5]
[348120076,1736334644864,-773.26823451,0.000105,5]
[348120077,1736334644876,-894.41627945,0.000105,5]
[348120078,1736334644895,-960.36,0.000105,5]
[348120079,1736334644927,-500.0,9.997e-05,2]
[348120080,1736334644936,-50.7844546,0.000105,5]
[348120081,1736334645235,-500.0,9.998e-05,2]
[348120082,1736334645244,-670.726165,0.00010018,2]
[348120083,1736334645255,-1005.58868685,0.00010018,2]
[348120084,1736334645274,-715.20274929,0.00010018,2]
[348120085,1736334645286,-1168.96726801,0.00010018,2]
[348120086,1736334645297,-8915.39040502,0.00010018,2]
[348120087,1736334645315,-297.29822962,0.00010018,2]
[348120088,1736334645326,-6169.30901992,0.00010018,2]
[348120089,1736334645335,-500.0,0.00010271,2]
[348120090,1736334645345,-31463.88546849,0.000104,2]
[348120091,1736334645354,-503384.04939545,0.000105,5]
[348120095,1736334645964,-151.81898893,9.973e-05,2]
[348120096,1736334645974,-186.63315717,9.993e-05,2]
[348120097,1736334646266,-313.36684283,9.993e-05,2]
[348120098,1736334646275,-6876.42682465,0.000105,5]
[348120099,1736334646287,-2631.32905608,0.000105,5]
[348120128,1736335832318,-275.16771606,8e-05,2]
[348120129,1736335832328,-670.1,8.219e-05,2]
[348120130,1736335832338,-200.0,8.893e-05,2]
[348120131,1736335832348,-250.0,8.975e-05,2]
[348120132,1736335832358,-104.73233394,9.057e-05,2]
[348120133,1736335832370,-23795.26766606,9.057e-05,2]
[348120134,1736335832379,-500.0,9.103e-05,2]
[348120135,1736335832390,-1500.0,9.191e-05,2]
[348120136,1736335832399,-250.0,9.213e-05,2]
[348120137,1736335832409,-412.51,9.319e-05,2]
[348120138,1736335832419,-1000.0,9.356e-05,2]
[348120139,1736335832429,-165.91,9.381e-05,2]
[348120140,1736335832439,-1870.79,9.389e-05,2]
[348120141,1736335832450,-150.0,9.444e-05,2]
[348120142,1736335832461,-150.0,9.444e-05,2]
[348120143,1736335832471,-154.44,9.444e-05,2]
[348120144,1736335832482,-500.0,9.534e-05,2]
[348120145,1736335832491,-1058.0,9.58e-05,2]
[348120146,1736335832502,-2221.11480775,9.93e-05,2]
[348120147,1736335832514,-6778.88519225,9.93e-05,2]
[348120148,1736335832523,-154.823,9.97e-05,2]
[348120149,1736335832532,-500.0,9.973e-05,2]
[348120150,1736335832542,-500.0,9.973e-05,2]
[348120151,1736335832551,-150.0,9.992e-05,2]
[348120152,1736335832562,-500.0,9.993e-05,2]
[348120153,1736335832571,-500.0,9.993e-05,2]
[348120154,1736335832581,-2047.7,9.993e-05,2]
[348120155,1736335832591,-500.0,9.993e-05,2]
[348120156,1736335832601,-500.0,9.993e-05,2]
[348120157,1736335832610,-500.0,9.993e-05,2]
[348120158,1736335832620,-1146.53,9.993e-05,2]
[348120159,1736335832630,-4318.59,9.993e-05,2]
[348120160,1736335832639,-1122.97,9.993e-05,2]
[348120161,1736335832649,-500.0,9.993e-05,2]
[348120162,1736335832659,-916.65,9.993e-05,2]
[348120163,1736335832669,-743.14,9.993e-05,2]
[348120164,1736335832679,-935.84,9.993e-05,2]
[348120165,1736335832689,-2189.54,9.997e-05,2]
[348120166,1736335832699,-804.45,9.997e-05,2]
[348120167,1736335832709,-500.0,9.997e-05,2]
[348120168,1736335832719,-500.0,9.997e-05,2]
[348120169,1736335832729,-742.97,9.997e-05,2]
[348120170,1736335832739,-1166.99,9.997e-05,2]
[348120172,1736335832748,-500.0,9.997e-05,2]
[348120174,1736335832758,-500.0,9.997e-05,2]
[348120176,1736335832768,-1151.55,9.997e-05,2]
[348120178,1736335832777,-500.0,9.997e-05,2]
[348120180,1736335832787,-500.0,9.997e-05,2]
[348120182,1736335832797,-500.0,9.997e-05,2]
[348120184,1736335832807,-512.94,9.997e-05,2]
[348120187,1736335832817,-500.0,9.997e-05,2]
[348120189,1736335832826,-735.17,9.997e-05,2]
[348120191,1736335832837,-500.0,9.997e-05,2]
[348120193,1736335832847,-500.0,9.997e-05,2]
[348120195,1736335832856,-606.51,9.997e-05,2]
[348120197,1736335832866,-500.0,9.997e-05,2]
[348120199,1736335832875,-500.0,9.997e-05,2]
[348120201,1736335832885,-500.0,9.997e-05,2]
[348120203,1736335832895,-1973.91,9.997e-05,2]
[348120205,1736335832904,-500.0,9.997e-05,2]
[348120207,1736335832914,-500.0,9.997e-05,2]
[348120208,1736335832924,-500.0,9.997e-05,2]
[348120211,1736335832933,-1034.12,9.997e-05,2]
[348120213,1736335832943,-500.0,9.997e-05,2]
[348120215,1736335832953,-500.0,9.997e-05,2]
[348120217,1736335832963,-500.0,9.997e-05,2]
[348120219,1736335832972,-3112.7,9.997e-05,2]
[348120221,1736335832982,-500.0,9.997e-05,2]
[348120223,1736335832991,-102.34662105,9.997e-05,2]
[348120225,1736335833003,-397.65337895,9.997e-05,2]
[348120227,1736335833013,-500.0,9.997e-05,2]
[348120229,1736335833022,-288.35085485,9.997e-05,2]
[348120232,1736335833041,-62.17312809,9.997e-05,2]
[348120234,1736335833050,-238.82687091,9.997e-05,2]
[348120237,1736335833073,-261.17312909,9.997e-05,2]
[348120239,1736335833082,-123.87087091,9.997e-05,2]
[348120295,1736335838235,-1323.63455922,9.997e-05,2]
[348120296,1736335838247,-1300.84456987,9.997e-05,2]
[348120297,1736335838256,-500.0,9.997e-05,2]
[348120298,1736335838266,-500.0,9.997e-05,2]
[348120299,1736335838275,-500.0,9.997e-05,2]
[348120300,1736335838284,-500.0,9.997e-05,2]
[348120301,1736335838294,-500.0,9.997e-05,2]
[348120302,1736335838303,-500.0,9.997e-05,2]
[348120303,1736335838313,-1217.35,9.997e-05,2]
[348120304,1736335838323,-500.0,9.997e-05,2]
[348120305,1736335838333,-500.0,9.997e-05,2]
[348120306,1736335838343,-2306.44,9.997e-05,2]
[348120307,1736335838352,-500.0,9.997e-05,2]
[348120308,1736335838362,-500.0,9.997e-05,2]
[348120309,1736335838371,-500.0,9.997e-05,2]
[348120310,1736335838381,-500.0,9.997e-05,2]
[348120311,1736335838391,-500.0,9.997e-05,2]
[348120312,1736335838401,-608.31,9.997e-05,2]
[348120313,1736335838410,-319.13088966,9.997e-05,2]
[348120314,1736335838419,-520.81,9.997e-05,2]
[348120315,1736335838429,-500.0,9.997e-05,2]
[348120316,1736335838439,-500.0,9.997e-05,2]
[348120317,1736335838449,-500.0,9.997e-05,2]
[348120318,1736335838460,-500.0,9.997e-05,2]
[348120319,1736335838470,-1022.96,9.997e-05,2]
[348120320,1736335838480,-533.48,9.997e-05,2]
[348120321,1736335838490,-706.07,9.997e-05,2]
[348120322,1736335838499,-500.0,9.997e-05,2]
[348120323,1736335838508,-500.0,9.998e-05,2]
[348120324,1736335838518,-500.0,9.998e-05,2]
[348120325,1736335838528,-500.0,9.998e-05,2]
[348120326,1736335838538,-4375.1733062,9.999e-05,4]
[348120327,1736335838550,-622.66,9.999e-05,2]
[348120328,1736335838560,-1222.91,9.999e-05,2]
[348120329,1736335838569,-1677.96,9.999e-05,2]
[348120330,1736335838578,-1000.0,9.999e-05,2]
[348120331,1736335838588,-937.27,9.999e-05,2]
[348120332,1736335838597,-500.0,9.999e-05,2]
[348120333,1736335838607,-500.0,9.999e-05,2]
[348120334,1736335838619,-500.0,9.999e-05,2]
[348120335,1736335838631,-2448.06,9.999e-05,2]
[348120336,1736335838641,-1842.11,9.999e-05,2]
[348120337,1736335838652,-1765.36,9.999e-05,2]
[348120338,1736335838662,-890.47,9.999e-05,2]
[348120339,1736335838673,-1284.11,9.999e-05,2]
[348120340,1736335838684,-1466.19,9.999e-05,2]
[348120341,1736335838693,-815.41,9.999e-05,2]
[348120342,1736335838704,-508.26,9.999e-05,2]
[348120343,1736335838714,-500.0,9.999e-05,2]
[348120345,1736335838723,-500.0,9.999e-05,2]
[348120346,1736335838732,-1767.09,9.999e-05,2]
[348120347,1736335838742,-932.93,9.999e-05,2]
[348120348,1736335838751,-500.0,9.999e-05,2]
[348120349,1736335838760,-500.0,9.999e-05,2]
[348120350,1736335838769,-1128.95,9.999e-05,2]
[348120351,1736335838778,-839.7,9.999e-05,2]
[348120352,1736335838787,-500.0,9.999e-05,2]
[348120353,1736335838796,-500.0,9.999e-05,2]
[348120354,1736335838805,-500.0,9.999e-05,2]
[348120355,1736335838814,-2420.67,9.999e-05,2]
[348120356,1736335838823,-1264.45,9.999e-05,2]
[348120357,1736335838832,-4506.35,9.999e-05,2]
[348120358,1736335838841,-500.0,9.999e-05,2]
[348120359,1736335838851,-581.79,9.999e-05,2]
[348120360,1736335838860,-627.05,9.999e-05,2]
[348120361,1736335838869,-500.0,9.999e-05,2]
[348120362,1736335838878,-500.0,9.999e-05,2]
[348120363,1736335838888,-834.81,9.999e-05,2]
[348120364,1736335838899,-500.0,9.999e-05,2]
[348120365,1736335838908,-500.0,9.999e-05,2]
[348120366,1736335838918,-500.0,9.999e-05,2]
[348120367,1736335838927,-500.0,9.999e-05,2]
[348120368,1736335838937,-528.18,9.999e-05,2]
[348120369,1736335838945,-561.63,9.999e-05,2]
[348120370,1736335838956,-1105.99,9.999e-05,2]
[348120371,1736335838965,-504.63060428,9.999e-05,2]
[348120372,1736335838975,-500.0,9.999e-05,2]
[348120373,1736335838984,-265.27893356,9.999e-05,2]
[348120374,1736335838993,-500.0,9.999e-05,2]
[348120375,1736335839004,-500.26249077,9.999e-05,2]
[348120376,1736335839013,-500.0,9.999e-05,2]
[348120377,1736335839022,-500.0,9.999e-05,2]
[348120378,1736335839032,-500.0,9.999e-05,2]
[348120379,1736335839041,-500.0,9.999e-05,2]
[348120380,1736335839051,-500.0,9.999e-05,2]
[348120381,1736335839062,-500.0,9.999e-05,2]
[348120382,1736335839073,-500.0,9.999e-05,2]
[348120383,1736335839082,-500.0,9.999e-05,2]
[348120384,1736335839092,-184.03,0.0001,2]
[348120385,1736335839104,-13806.46343611,0.0001,2]
[348120386,1736335839416,-4042.16836142,0.0001,2]
[348120387,1736335839438,-646.88827817,0.0001,2]
[348120388,1736335839449,-533.5,0.0001,2]
[348120389,1736335839462,-1516.19512172,0.0001,2]
[348120390,1736335839474,-6853.07281286,0.0001,2]
[348120391,1736335839492,-1061635.73672002,0.0001,2]
[348120392,1736335839501,-204.53559601,0.0001,2]
[348120393,1736335839511,-2890425.53328922,0.0001,2]
[348120394,1736335839521,-209.32308303,0.0001,2]
[348120395,1736335839530,-209.32308291,0.00010018,2]
[348120396,1736335839539,-1058.0,0.00010084,2]
[348120397,1736335839547,-209.32308291,0.00010135,2]
[348120398,1736335839557,-196.23,0.00010137,2]
[348120399,1736335839566,-1000.0,0.0001017,2]
[348120400,1736335839576,-209.32308291,0.00010253,2]
[348120401,1736335839585,-636.0,0.00010258,2]
[348120402,1736335839594,-150.0,0.00010258,2]
[348120403,1736335839603,-1103.0,0.00010258,2]
[348120404,1736335839612,-2097.212,0.00010266,2]
[348120405,1736335839622,-152.603,0.00010266,2]
[348120406,1736335839631,-500.0,0.00010267,2]
[348120407,1736335839640,-500.0,0.00010267,2]
[348120408,1736335839649,-2047.7,0.00010267,2]
[348120409,1736335839658,-500.0,0.00010267,2]
[348120410,1736335839667,-500.0,0.00010267,2]
[348120411,1736335839676,-1196.38,0.00010267,2]
[348120412,1736335839685,-1146.53,0.00010267,2]
[348120413,1736335839695,-4318.59,0.00010267,2]
[348120414,1736335839704,-1122.97,0.00010267,2]
[348120415,1736335839714,-500.0,0.00010267,2]
[348120416,1736335839723,-916.65,0.00010267,2]
[348120417,1736335839732,-743.14,0.00010267,2]
[348120418,1736335839741,-935.84,0.00010267,2]
[348120419,1736335839750,-160.30359622,0.0001027,2]
[348120420,1736335839758,-500.0,0.0001027,2]
[348120421,1736335839971,-500.0,0.0001027,2]
[348120422,1736335839981,-500.0,0.0001027,2]
[348120423,1736335839990,-500.0,0.0001027,2]
[348120424,1736335840000,-500.0,0.0001027,2]
[348120425,1736335840009,-500.0,0.0001027,2]
[348120426,1736335840019,-500.0,0.0001027,2]
[348120427,1736335840028,-500.0,0.0001027,2]
[348120428,1736335840037,-500.0,0.0001027,2]
[348120429,1736335840046,-500.0,0.0001027,2]
[348120430,1736335840055,-500.0,0.0001027,2]
[348120431,1736335840067,-500.0,0.0001027,2]
[348120432,1736335840076,-500.0,0.0001027,2]
[348120435,1736335840085,-500.0,0.0001027,2]
[348120437,1736335840094,-500.0,0.0001027,2]
[348120439,1736335840103,-500.0,0.0001027,2]
[348120441,1736335840113,-500.0,0.0001027,2]
[348120443,1736335840123,-500.0,0.0001027,2]
[348120445,1736335840134,-500.0,0.0001027,2]
[348120447,1736335840144,-500.0,0.0001027,2]
[348120449,1736335840153,-172.95,0.0001027,2]
[348120451,1736335840163,-500.0,0.0001027,2]
[348120452,1736335840172,-500.0,0.0001027,2]
[348120453,1736335840181,-500.0,0.0001027,2]
[348120454,1736335840190,-500.0,0.0001027,2]
[348120455,1736335840199,-500.0,0.0001027,2]
[348120457,1736335840210,-500.0,0.0001027,2]
[348120459,1736335840220,-500.0,0.0001027,2]
[348120460,1736335840229,-500.0,0.0001027,2]
[348120461,1736335840238,-500.0,0.0001027,2]
[348120462,1736335840248,-500.0,0.0001027,2]
[348120463,1736335840259,-500.0,0.0001027,2]
[348120464,1736335840269,-572.81,0.0001027,2]
[348120465,1736335840280,-500.0,0.0001027,2]
[348120466,1736335840289,-229.01376276,0.0001027,2]
[348120467,1736335840298,-500.0,0.0001027,2]
[348120468,1736335840307,-518.59,0.0001027,2]
[348120469,1736335840317,-500.0,0.0001027,2]
[348120470,1736335840326,-500.0,0.0001027,2]
[348120471,1736335840337,-500.0,0.0001027,2]
[348120472,1736335840347,-500.0,0.0001027,2]
[348120473,1736335840356,-500.0,0.0001027,2]
[348120474,1736335840366,-500.0,0.0001027,2]
[348120475,1736335840376,-542.75,0.0001027,2]
[348120476,1736335840387,-500.0,0.0001027,2]
[348120477,1736335840397,-256.84,0.0001027,2]
[348120478,1736335840406,-500.0,0.0001027,2]
[348120479,1736335840415,-500.0,0.0001027,2]
[348120480,1736335840424,-500.0,0.0001027,2]
[348120481,1736335840433,-500.0,0.0001027,2]
[348120482,1736335840442,-500.0,0.0001027,2]
[348120483,1736335840452,-500.0,0.0001027,2]
[348120484,1736335840465,-500.0,0.0001027,2]
[348120485,1736335840475,-3321.0,0.0001027,2]
[348120486,1736335840484,-500.0,0.0001027,2]
[348120487,1736335840493,-500.0,0.0001027,2]
[348120488,1736335840503,-184.01,0.0001027,2]
[348120489,1736335840512,-519.98,0.0001027,2]
[348120490,1736335840521,-500.0,0.0001027,2]
[348120491,1736335840530,-2160.53,0.0001027,2]
[348120492,1736335840539,-934.9,0.0001027,2]
[348120493,1736335840548,-377.80554471,0.0001027,2]
[348120494,1736335840557,-500.0,0.0001027,2]
[348120495,1736335840567,-518.17,0.0001027,2]
[348120496,1736335840576,-500.0,0.0001027,2]
[348120497,1736335840585,-500.0,0.0001027,2]
[348120498,1736335840594,-1287.23,0.0001027,2]
[348120499,1736335840603,-500.0,0.0001027,2]
[348120500,1736335840612,-1123.26,0.0001027,2]
[348120501,1736335840622,-500.0,0.0001027,2]
[348120503,1736335840631,-500.0,0.0001027,2]
[348120504,1736335840639,-500.0,0.0001027,2]
[348120505,1736335840649,-500.0,0.0001027,2]
[348120506,1736335840658,-2415.31,0.0001027,2]
[348120507,1736335840667,-500.0,0.0001027,2]
[348120509,1736335840676,-611.83,0.0001027,2]
[348120511,1736335840685,-500.0,0.0001027,2]
[348120513,1736335840694,-500.0,0.0001027,2]
[348120515,1736335840704,-927.09,0.0001027,2]
[348120518,1736335840715,-500.0,0.0001027,2]
[348120520,1736335840724,-500.0,0.0001027,2]
[348120521,1736335840733,-500.0,0.0001027,2]
[348120523,1736335840742,-1002.27,0.0001027,2]
[348120527,1736335840751,-500.0,0.0001027,2]
[348120530,1736335840760,-500.0,0.0001027,2]
[348120534,1736335840770,-789.97,0.0001027,2]
[348120536,1736335840779,-757.05,0.0001027,2]
[348120539,1736335840788,-850.3,0.0001027,2]
[348120541,1736335840796,-500.0,0.0001027,2]
[348120543,1736335840806,-500.0,0.0001027,2]
[348120545,1736335840815,-500.0,0.0001027,2]
[348120547,1736335840824,-833.273915,0.0001027,2]
[348120549,1736335840833,-500.0,0.0001027,2]
[348120551,1736335840842,-500.0,0.0001027,2]
[348120553,1736335840851,-2722.93,0.0001027,2]
[348120555,1736335840860,-500.0,0.0001027,2]
[348120557,1736335840869,-500.0,0.0001027,2]
[348120559,1736335840878,-500.0,0.0001027,2]
[348120561,1736335840887,-500.0,0.0001027,2]
[348120563,1736335840896,-572.503991,0.0001027,2]
[348120565,1736335840905,-500.0,0.0001027,2]
[348120567,1736335840915,-500.0,0.0001027,2]
[348120568,1736335840924,-500.0,0.0001027,2]
[348120569,1736335840934,-500.0,0.0001027,2]
[348120570,1736335840943,-624.53,0.0001027,2]
[348120571,1736335840951,-500.0,0.0001027,2]
[348120572,1736335840963,-500.0,0.0001027,2]
[348120573,1736335840972,-500.0,0.0001027,2]
[348120574,1736335840981,-500.0,0.0001027,2]
[348120575,1736335840990,-500.0,0.0001027,2]
[348120576,1736335841000,-500.0,0.0001027,2]
[348120577,1736335841009,-500.0,0.0001027,2]
[348120578,1736335841018,-2522.9,0.0001027,2]
[348120579,1736335841027,-500.0,0.0001027,2]
[348120580,1736335841037,-500.0,0.0001027,2]
[348120581,1736335841046,-500.0,0.0001027,2]
[348120582,1736335841056,-500.0,0.0001027,2]
[348120583,1736335841067,-500.0,0.0001027,2]
[348120584,1736335841077,-500.80795696,0.0001027,2]
[348120585,1736335841087,-1938.8,0.0001027,2]
[348120586,1736335841096,-500.0,0.0001027,2]
[348120587,1736335841106,-500.0,0.0001027,2]
[348120588,1736335841117,-500.0,0.0001027,2]
[348120589,1736335841129,-500.0,0.0001027,2]
[348120590,1736335841139,-500.0,0.0001027,2]
[348120591,1736335841148,-500.0,0.0001027,2]
[348120592,1736335841158,-580.13489857,0.0001027,2]
[348120593,1736335841167,-2189.54,0.00010271,2]
[348120594,1736335841177,-804.45,0.00010271,2]
[348120595,1736335841186,-500.0,0.00010271,2]
[348120596,1736335841195,-500.0,0.00010271,2]
[348120597,1736335841205,-742.97,0.00010271,2]
[348120598,1736335841216,-1166.99,0.00010271,2]
[348120599,1736335841226,-1151.55,0.00010271,2]
[348120600,1736335841235,-500.0,0.00010271,2]
[348120601,1736335841244,-500.0,0.00010271,2]
[348120602,1736335841253,-500.0,0.00010271,2]
[348120603,1736335841265,-500.0,0.00010271,2]
[348120604,1736335841274,-735.17,0.00010271,2]
[348120605,1736335841283,-500.0,0.00010271,2]
[348120606,1736335841292,-500.0,0.00010271,2]
[348120607,1736335841301,-606.51,0.00010271,2]
[348120608,1736335841311,-500.0,0.00010271,2]
[348120609,1736335841320,-500.0,0.00010271,2]
[348120610,1736335841329,-500.0,0.00010271,2]
[348120611,1736335841338,-1973.91,0.00010271,2]
[348120612,1736335841347,-500.0,0.00010271,2]
[348120613,1736335841356,-500.0,0.00010271,2]
[348120614,1736335841365,-500.0,0.00010271,2]
[348120615,1736335841375,-1034.12,0.00010271,2]
[348120616,1736335841385,-500.0,0.00010271,2]
[348120617,1736335841395,-500.0,0.00010271,2]
[348120618,1736335841405,-3112.7,0.00010271,2]
[348120619,1736335841415,-500.0,0.00010271,2]
[348120620,1736335841424,-500.0,0.00010271,2]
[348120621,1736335841434,-500.0,0.00010271,2]
[348120622,1736335841444,-500.0,0.00010271,2]
[348120623,1736335841453,-2748.35,0.00010271,2]
[348120624,1736335841464,-500.0,0.00010271,2]
[348120625,1736335841475,-500.0,0.00010271,2]
[348120626,1736335841484,-500.0,0.00010271,2]
[348120627,1736335841493,-500.0,0.00010271,2]
[348120628,1736335841503,-500.0,0.00010271,2]
[348120629,1736335841512,-500.0,0.00010271,2]
[348120630,1736335841521,-1217.35,0.00010271,2]
[348120631,1736335841530,-500.0,0.00010271,2]
[348120632,1736335841539,-500.0,0.00010271,2]
[348120633,1736335841548,-2306.44,0.00010271,2]
[348120634,1736335841557,-500.0,0.00010271,2]
[348120635,1736335841566,-500.0,0.00010271,2]
[348120636,1736335841575,-500.0,0.00010271,2]
[348120637,1736335841584,-500.0,0.00010271,2]
[348120638,1736335841594,-608.31,0.00010271,2]
[348120639,1736335841604,-520.81,0.00010271,2]
[348120640,1736335841613,-500.0,0.00010271,2]
[348120641,1736335841624,-500.0,0.00010271,2]
[348120642,1736335841635,-500.0,0.00010271,2]
[348120643,1736335841645,-500.0,0.00010271,2]
[348120644,1736335841654,-1022.96,0.00010271,2]
[348120645,1736335841665,-533.48,0.00010271,2]
[348120646,1736335841675,-706.07,0.00010271,2]
[348120647,1736335841685,-500.0,0.00010272,2]
[348120648,1736335841694,-509.77,0.00010272,2]
[348120649,1736335841704,-622.66,0.00010273,2]
[348120650,1736335841714,-1222.91,0.00010273,2]
[348120651,1736335841723,-1677.96,0.00010273,2]
[348120652,1736335841732,-1000.0,0.00010273,2]
[348120653,1736335841743,-937.27,0.00010273,2]
[348120654,1736335841752,-500.0,0.00010273,2]
[348120655,1736335841761,-500.0,0.00010273,2]
[348120656,1736335841770,-2448.06,0.00010273,2]
[348120657,1736335841780,-1842.11,0.00010273,2]
[348120658,1736335841791,-1765.36,0.00010273,2]
[348120659,1736335841800,-890.47,0.00010273,2]
[348120660,1736335841809,-1284.11,0.00010273,2]
[348120661,1736335841818,-1466.19,0.00010273,2]
[348120662,1736335841827,-815.41,0.00010273,2]
[348120663,1736335841837,-508.26,0.00010273,2]
[348120664,1736335841846,-500.0,0.00010273,2]
[348120665,1736335841855,-500.0,0.00010273,2]
[348120666,1736335841864,-1767.09,0.00010273,2]
[348120667,1736335841873,-932.93,0.00010273,2]
[348120668,1736335841882,-500.0,0.00010273,2]
[348120669,1736335841891,-500.0,0.00010273,2]
[348120670,1736335841900,-1128.95,0.00010273,2]
[348120671,1736335841910,-839.7,0.00010273,2]
[348120672,1736335841919,-500.0,0.00010273,2]
[348120673,1736335841932,-500.0,0.00010273,2]
[348120674,1736335841941,-500.0,0.00010273,2]
[348120675,1736335841951,-2420.67,0.00010273,2]
[348120676,1736335841962,-1264.45,0.00010273,2]
[348120677,1736335841971,-4506.35,0.00010273,2]
[348120678,1736335841980,-500.0,0.00010273,2]
[348120679,1736335841990,-581.79,0.00010273,2]
[348120680,1736335841999,-627.05,0.00010273,2]
[348120681,1736335842008,-500.0,0.00010273,2]
[348120682,1736335842019,-834.81,0.00010273,2]
[348120683,1736335842029,-500.0,0.00010273,2]
[348120684,1736335842042,-500.0,0.00010273,2]
[348120685,1736335842051,-500.0,0.00010273,2]
[348120686,1736335842061,-644.78482914,0.00010273,2]
[348120687,1736335842072,-1105.99,0.00010273,2]
[348120688,1736335842082,-500.0,0.00010273,2]
[348120689,1736335842092,-500.0,0.00010273,2]
[348120690,1736335842102,-500.0,0.00010273,2]
[348120691,1736335842111,-500.0,0.00010273,2]
[348120692,1736335842121,-500.0,0.00010273,2]
[348120693,1736335842130,-209.32308291,0.00010371,2]
[348120694,1736335842140,-581.43160964,0.000104,2]
[348120695,1736335842149,-7880.57310539,0.000104,3]
[348120696,1736335842159,-670.1,0.00010419,2]
[348120697,1736335842168,-412.51,0.00010484,2]
[348120698,1736335842177,-209.32308291,0.00010488,2]
[348120699,1736335842187,-150.0,0.00010493,2]
[348120700,1736335842196,-430.06426843,0.00010498,2]
[348120701,1736335842206,-500.0,0.00010498,2]
[348120702,1736335842216,-500.0,0.00010498,2]
[348120703,1736335842226,-500.0,0.00010498,2]
[348120704,1736335842235,-500.0,0.00010498,2]
[348120705,1736335842245,-500.0,0.00010498,2]
[348120706,1736335842255,-500.0,0.00010498,2]
[348120707,1736335842265,-500.0,0.00010498,2]
[348120708,1736335842274,-500.0,0.00010498,2]
[348120709,1736335842284,-500.0,0.00010498,2]
[348120710,1736335842293,-500.0,0.00010498,2]
[348120711,1736335842302,-500.0,0.00010498,2]
[348120712,1736335842312,-500.0,0.00010498,2]
[348120713,1736335842321,-500.0,0.00010498,2]
[348120714,1736335842331,-500.0,0.00010498,2]
[348120715,1736335842340,-500.0,0.00010498,2]
[348120716,1736335842350,-500.0,0.00010498,2]
[348120717,1736335842360,-500.0,0.00010498,2]
[348120718,1736335842370,-500.0,0.00010498,2]
[348120719,1736335842379,-431.3306505,0.00010498,2]
[348120720,1736335842389,-500.0,0.00010498,2]
[348120721,1736335842399,-500.0,0.00010498,2]
[348120722,1736335842408,-901.9,0.00010498,2]
[348120723,1736335842418,-500.0,0.00010498,2]
[348120724,1736335842427,-500.0,0.00010498,2]
[348120725,1736335842438,-500.0,0.00010498,2]
[348120726,1736335842447,-500.0,0.00010498,2]
[348120727,1736335842457,-500.0,0.00010498,2]
[348120728,1736335842469,-500.0,0.00010498,7]
[348120729,1736335842478,-500.0,0.00010498,2]